bitfinex/quotes_SOLUSD_20250724
["timestamp","ask_amount","ask_price","bid_price","bid_amount"]
[1753376541675,7.32,186.22,186.2,5.65489242]
[1753376542197,7.32,186.23,186.2,5.65489242]
[1753376542694,7.32,186.21,186.2,5.65489242]
[1753376543399,7.32,186.25,186.22,0.28432314]
[1753376543588,0.7,186.25,186.22,0.28432314]
[1753376543792,0.7,186.25,186.21,16.78468397]
[1753376543793,8.02,186.24,186.21,16.78468397]
[1753376543974,7.32,186.22,186.21,0.28432314]
[1753376544175,7.32,186.21,186.2,17.06900711]
[1753376544589,7.32,186.22,186.2,17.06900711]
[1753376544893,8.02,186.23,186.2,17.06900711]
[1753376545093,0.7,186.22,186.21,5.37028086]
[1753376545404,7.32,186.23,186.22,17.06900711]
[1753376545584,7.32,186.25,186.22,17.06900711]
[1753376545892,7.32,186.23,186.22,17.06900711]
[1753376546075,7.32,186.22,186.21,5.37028086]
[1753376546276,7.32,186.21,186.2,22.43951419]
[1753376546574,8.02,186.21,186.2,22.43951419]
[1753376547340,7.32,186.21,186.2,22.43951419]
[1753376548019,8.04,186.21,186.2,22.43951419]
[1753376549810,8.04,186.21,186.16,13.48882597]
[1753376549811,7.32,186.17,186.16,22.21640721]
[1753376550283,7.32,186.18,186.17,17.06900711]
[1753376550484,8.04,186.18,186.17,16.92684554]
[1753376550808,8.04,186.18,186.17,17.06900711]
[1753376551009,8.04,186.18,186.16,5.43172324]
[1753376551216,8.04,186.17,186.16,0.06]
[1753376551423,7.32,186.17,186.16,5.43172324]
[1753376551727,7.32,186.2,186.17,17.06900711]
[1753376551898,7.32,186.19,186.17,17.06900711]
[1753376552096,7.32,186.2,186.17,55.84900711]
[1753376552918,7.32,186.21,186.17,55.84900711]
[1753376553424,7.32,186.23,186.18,0.49]
[1753376553615,7.32,186.23,186.21,5.37028086]
[1753376553809,7.32,186.24,186.21,5.37028086]
[1753376554019,7.32,186.25,186.22,17.06900711]
[1753376554203,7.32,186.25,186.22,55.84900711]
[1753376554620,7.32,186.23,186.22,55.84900711]
[1753376555626,8.04,186.23,186.22,61.21899959]
[1753376556010,8.04,186.23,186.22,22.43899959]
[1753376556216,8.04,186.23,186.2,44.15050435]
[1753376556527,8.04,186.22,186.2,5.37050435]
[1753376557311,7.32,186.22,186.2,5.37050435]
[1753376557696,7.32,186.19,186.16,0.06]
[1753376557900,7.32,186.18,186.17,22.15604782]
[1753376558104,8.04,186.18,186.17,22.15604782]
[1753376558304,8.04,186.18,186.17,16.78468397]
[1753376558528,8.04,186.18,186.17,17.06900711]
[1753376558712,8.04,186.18,186.16,5.43166556]
[1753376558905,8.04,186.17,186.16,22.50067267]
[1753376559107,8.04,186.17,186.16,22.3585111]
[1753376559607,8.04,186.17,186.16,22.50067267]
[1753376560422,7.32,186.17,186.16,22.50067267]
[1753376560618,8.04,186.17,186.16,0.06]
[1753376563824,7.32,186.17,186.16,0.06]
[1753376564015,7.32,186.18,186.16,0.06]
[1753376564432,7.32,186.19,186.16,17.12900711]
[1753376564808,7.32,186.18,186.16,17.12900711]
[1753376565213,7.32,186.2,186.16,17.61900711]
[1753376565425,7.32,186.2,186.18,17.06900711]
[1753376566307,7.32,186.2,186.19,22.43986483]
[1753376566537,7.32,186.21,186.2,17.06900711]
[1753376567413,7.32,186.2,186.19,5.37085772]
[1753376567626,7.32,186.2,186.19,5.65518086]
[1753376567807,8.04,186.2,186.19,5.65518086]
[1753376568008,7.32,186.2,186.19,5.65518086]
[1753376568223,7.32,186.22,186.21,5.37028086]
[1753376568428,7.32,186.2,186.19,5.65518086]
[1753376568724,8.04,186.2,186.19,5.65518086]
[1753376569223,7.32,186.2,186.19,5.65518086]
[1753376570918,8.04,186.2,186.19,5.65518086]
[1753376571113,7.32,186.17,186.16,22.50070072]
[1753376571313,8.04,186.17,186.16,22.50070072]
[1753376571504,7.32,186.17,186.16,22.50070072]
[1753376572814,8.04,186.17,186.16,0.06]
[1753376575715,8.04,186.17,186.16,5.43172324]
[1753376576536,8.04,186.17,186.16,0.06]
[1753376580537,7.32,186.17,186.16,0.06]
[1753376580736,7.32,186.2,186.18,0.28432314]
[1753376581115,7.32,186.19,186.18,0.28432314]
[1753376581315,7.32,186.2,186.18,0.28432314]
[1753376581521,7.32,186.19,186.18,0.28432314]
[1753376581736,7.98,186.19,186.18,0.28432314]
[1753376582539,7.98,186.19,186.17,22.15583542]
[1753376583217,7.32,186.2,186.18,0.28432314]
[1753376583616,7.32,186.2,186.19,55.82900711]
[1753376583842,7.32,186.21,186.19,55.82900711]
[1753376584044,7.32,186.2,186.19,55.82900711]
[1753376584223,7.32,186.22,186.19,55.82900711]
[1753376584544,7.32,186.22,186.21,17.06900711]
[1753376585416,7.32,186.23,186.21,17.06900711]
[1753376585832,7.32,186.22,186.21,17.06900711]
[1753376586018,7.32,186.2,186.19,5.65508793]
[1753376586218,7.98,186.2,186.19,5.37076479]
[1753376586437,7.32,186.2,186.19,16.78468397]
[1753376586842,7.32,186.2,186.19,16.92684554]
[1753376587052,7.32,186.2,186.19,17.06900711]
[1753376587348,7.32,186.22,186.2,0.28432314]
[1753376587537,7.32,186.23,186.2,0.28432314]
[1753376588145,7.32,186.22,186.2,0.28432314]
[1753376588524,7.32,186.22,186.21,5.654604]
[1753376589145,7.98,186.22,186.21,17.06900711]
[1753376589351,7.98,186.22,186.18,5.3711462]
[1753376589539,7.32,186.2,186.19,17.06900711]
[1753376590428,7.32,186.2,186.19,5.65518086]
[1753376591331,7.32,186.21,186.19,5.65518086]
[1753376592253,0.66,186.24,186.19,5.65518086]
[1753376592254,7.32,186.23,186.19,19.08232517]
[1753376592569,7.32,186.24,186.21,0.28432314]
[1753376592728,0.66,186.29,186.24,17.06900711]
[1753376592729,7.32,186.28,186.24,17.06900711]
[1753376593037,7.98,186.31,186.27,0.28432314]
[1753376593239,8.01,186.34,186.29,16.78468397]
[1753376593550,7.32,186.31,186.29,17.55900711]
[1753376593952,7.32,186.31,186.29,17.06900711]
[1753376594336,7.32,186.31,186.29,22.43698177]
[1753376594560,7.32,186.32,186.29,22.43698177]
[1753376595769,7.32,186.31,186.29,22.43698177]
[1753376596136,7.35,186.3,186.29,61.19698177]
[1753376596340,0.03,186.3,186.29,61.19698177]
[1753376596838,0.03,186.3,186.29,61.68698177]
[1753376597554,0.03,186.3,186.29,61.19698177]
[1753376599438,0.03,186.3,186.29,61.68698177]
[1753376599948,1e-08,186.3,186.29,63.85687923]
[1753376600738,1e-08,186.34,186.33,16.78468397]
[1753376601041,1e-08,186.34,186.33,55.80900711]
[1753376601240,1e-08,186.35,186.34,0.28432314]
[1753376601461,1e-08,186.35,186.34,18.09566053]
[1753376601779,1e-08,186.37,186.36,43.06900711]
[1753376602071,1e-08,186.37,186.36,81.80900711]
[1753376602248,7.35,186.4,186.38,0.28432314]
[1753376602560,0.03,186.4,186.39,60.86977866]
[1753376602766,0.03,186.4,186.39,61.6441018]
[1753376603143,0.03,186.4,186.39,61.1541018]
[1753376603637,0.03,186.4,186.39,22.4341018]
[1753376603841,0.03,186.4,186.39,61.1541018]
[1753376604846,7.35,186.44,186.4,17.06900711]
[1753376605047,7.35,186.44,186.42,0.28432314]
[1753376605250,7.35,186.44,186.43,55.78900711]
[1753376605652,0.03,186.44,186.43,55.78900711]
[1753376607234,0.03,186.44,186.43,61.15295068]
[1753376608662,0.75,186.44,186.43,61.13295068]
[1753376608858,7.32,186.43,186.4,5.64913]
[1753376609057,8.04,186.42,186.41,55.76900711]
[1753376609364,8.04,186.42,186.37,2.6279471]
[1753376609540,8.04,186.41,186.38,55.48468397]
[1753376609857,8.04,186.41,186.39,0.28432314]
[1753376609858,0.72,186.41,186.39,0.28432314]
[1753376610043,7.32,186.41,186.4,38.98432314]
[1753376611168,7.32,186.41,186.4,55.76900711]
[1753376611356,0.03,186.44,186.42,0.28432314]
[1753376611554,0.03,186.44,186.43,55.76900711]
[1753376612647,0.03,186.44,186.43,56.25900711]
[1753376612870,7.32,186.48,186.44,17.06900711]
[1753376613071,7.52,186.49,186.47,0.28432314]
[1753376613373,7.52,186.49,186.42,17.06900711]
[1753376613374,7.32,186.45,186.42,17.06900711]
[1753376613673,7.32,186.45,186.44,16.78468397]
[1753376613862,8.04,186.45,186.44,17.06900711]
[1753376614178,7.32,186.45,186.44,17.06900711]
[1753376614476,7.32,186.46,186.45,0.28432314]
[1753376614653,7.32,186.46,186.45,38.98432314]
[1753376615377,7.32,186.46,186.45,44.34769133]
[1753376616271,7.32,186.48,186.46,16.78468397]
[1753376616767,7.32,186.48,186.47,55.48468397]
[1753376617183,7.32,186.48,186.47,55.76900711]
[1753376617361,7.32,186.48,186.47,61.13180005]
[1753376618471,7.32,186.48,186.47,55.48468397]
[1753376618472,8.04,186.48,186.47,55.48468397]
[1753376618672,7.32,186.45,186.44,22.43265935]
[1753376618869,7.32,186.47,186.45,17.06900711]
[1753376619182,7.32,186.46,186.45,17.06900711]
[1753376619387,7.32,186.46,186.45,22.4323753]
[1753376619898,7.32,186.46,186.45,61.1123753]
[1753376620378,7.32,186.47,186.45,61.1123753]
[1753376620971,7.32,186.46,186.45,61.1123753]
[1753376621176,7.32,186.44,186.41,17.06900711]
[1753376621349,7.32,186.44,186.4,26.0]
[1753376621350,8.04,186.44,186.43,17.06900711]
[1753376621965,0.72,186.44,186.43,17.06900711]
[1753376622176,8.04,186.44,186.43,17.06900711]
[1753376622563,7.32,186.44,186.43,17.06900711]
[1753376623159,7.32,186.45,186.43,22.43295068]
[1753376623370,7.32,186.44,186.43,22.43295068]
[1753376623573,7.32,186.44,186.43,61.11295068]
[1753376623777,8.04,186.45,186.43,61.11295068]
[1753376623981,7.32,186.44,186.43,61.11295068]
[1753376625262,7.32,186.47,186.43,74.5228096]
[1753376625583,0.2,186.49,186.47,17.06900711]
[1753376625785,0.2,186.49,186.48,55.74900711]
[1753376626162,0.2,186.49,186.48,56.23900711]
[1753376626571,0.2,186.49,186.48,55.74900711]
[1753376626799,7.52,186.49,186.48,55.74900711]
[1753376627098,0.2,186.49,186.48,55.74900711]
[1753376627281,0.2,186.49,186.48,61.11151247]
[1753376630379,0.2,186.49,186.48,62.137763]
[1753376631295,1e-08,186.49,186.48,88.137763]
[1753376631479,6.82000001,186.54,186.49,17.06900711]
[1753376631679,6.82000001,186.54,186.52,0.28432314]
[1753376631872,6.82000001,186.54,186.53,55.46468397]
[1753376632192,6.82000001,186.55,186.54,16.78468397]
[1753376632388,6.82000001,186.55,186.54,22.42978763]
[1753376632574,7.54000001,186.58,186.54,22.42978763]
[1753376632778,6.82000001,186.56,186.55,55.44468397]
[1753376633294,6.82000001,186.6,186.56,17.06900711]
[1753376633475,6.82000001,186.61,186.59,0.28432314]
[1753376633668,6.82000001,186.61,186.6,55.72900711]
[1753376633872,6.82000001,186.62,186.61,16.78468397]
[1753376634195,7.54000001,186.62,186.61,16.78468397]
[1753376634789,7.54000001,186.62,186.61,22.14345359]
[1753376634989,6.82000001,186.63,186.61,22.14345359]
[1753376635291,6.82000001,186.63,186.62,55.44468397]
[1753376635489,6.82000001,186.63,186.62,55.72900711]
[1753376635991,7.54000001,186.63,186.62,55.72900711]
[1753376636177,6.82000001,186.64,186.63,17.06900711]
[1753376636381,7.02000001,186.65,186.64,5.64223141]
[1753376636692,7.74000001,186.65,186.64,38.94432314]
[1753376636873,7.74000001,186.65,186.64,44.30223141]
[1753376637074,7.02000001,186.65,186.64,44.30223141]
[1753376637575,7.73000001,186.65,186.64,44.30223141]
[1753376637990,7.02000001,186.65,186.64,44.30223141]
[1753376639591,7.02000001,186.65,186.6,13.88731194]
[1753376639592,7.02000001,186.65,186.6,13.39731194]
[1753376639798,6.82000001,186.61,186.6,22.28590234]
[1753376639999,6.82000001,186.61,186.6,60.92590234]
[1753376640293,6.82000001,186.61,186.6,61.06806391]
[1753376640484,6.82000001,186.61,186.6,60.92590234]
[1753376640689,6.82000001,186.62,186.61,0.14216157]
[1753376640994,6.82000001,186.62,186.61,0.28432314]
[1753376641178,6.82000001,186.61,186.6,60.92590234]
[1753376641381,7.53000001,186.61,186.6,60.92590234]
[1753376641584,7.53000001,186.61,186.6,61.06806391]
[1753376641781,0.71,186.61,186.6,61.06806391]
[1753376642188,6.82000001,186.61,186.6,61.06806391]
[1753376642382,7.53000001,186.61,186.6,55.42468397]
[1753376642795,6.82000001,186.59,186.53,7.8367]
[1753376643098,6.82000001,186.55,186.5,5.36193029]
[1753376643298,6.82000001,186.53,186.51,38.64]
[1753376643600,6.82000001,186.53,186.51,64.64]
[1753376643779,6.82000001,186.54,186.51,64.64]
[1753376643977,6.82000001,186.53,186.52,17.06900711]
[1753376644304,7.53000001,186.53,186.52,16.78468397]
[1753376644792,0.71,186.53,186.52,22.28820089]
[1753376644999,7.53000001,186.53,186.52,22.28820089]
[1753376645205,6.82000001,186.53,186.52,22.43036246]
[1753376645411,6.82000001,186.53,186.52,22.28820089]
[1753376645697,6.82000001,186.53,186.52,22.43036246]
[1753376646883,6.82000001,186.55,186.53,0.28432314]
[1753376647084,6.82000001,186.55,186.54,38.64]
[1753376647403,6.82000001,186.55,186.54,55.70900711]
[1753376647600,0.71,186.59,186.55,0.28432314]
[1753376647601,6.82000001,186.56,186.55,0.28432314]
[1753376647798,6.82000001,186.57,186.56,16.78468397]
[1753376648101,6.82000001,186.58,186.57,0.28432314]
[1753376648297,6.82000001,186.58,186.57,55.70900711]
[1753376648480,6.82000001,186.6,186.57,81.70900711]
[1753376648886,6.82000001,186.6,186.59,22.14402798]
[1753376649086,6.82000001,186.6,186.59,60.78402798]
[1753376649282,6.82000001,186.58,186.56,64.64]
[1753376649485,7.53000001,186.57,186.56,16.78468397]
[1753376649683,6.82000001,186.52,186.5,16.78468397]
[1753376649989,6.82000001,186.53,186.52,16.78468397]
[1753376650391,6.82000001,186.53,186.52,17.06900711]
[1753376650891,6.82000001,186.55,186.54,16.78468397]
[1753376651089,6.82000001,186.56,186.54,55.70900711]
[1753376651292,6.82000001,186.56,186.55,0.28432314]
[1753376652283,6.82000001,186.57,186.55,0.28432314]
[1753376652599,6.82000001,186.59,186.57,0.28432314]
[1753376652801,6.82000001,186.6,186.59,17.06900711]
[1753376652984,6.82000001,186.61,186.6,0.28432314]
[1753376653185,0.2,186.65,186.6,0.28432314]
[1753376653186,7.02000001,186.65,186.61,16.78468397]
[1753376653486,0.2,186.65,186.64,43.06900711]
[1753376653690,1e-08,186.65,186.64,82.19900711]
[1753376653991,6.82000001,186.73,186.69,16.78468397]
[1753376654194,6.82000001,186.74,186.71,16.78468397]
[1753376654396,0.71,186.76,186.73,16.78468397]
[1753376654397,6.82000001,186.75,186.73,16.78468397]
[1753376654608,6.82000001,186.75,186.74,55.42468397]
[1753376654786,6.82000001,186.75,186.74,60.77972306]
[1753376654992,7.53000001,186.75,186.74,60.77972306]
[1753376655183,6.82000001,186.75,186.74,60.77972306]
[1753376655526,7.53000001,186.75,186.74,55.42468397]
[1753376655710,7.53000001,186.75,186.74,16.78468397]
[1753376656086,6.82000001,186.71,186.67,26.0]
[1753376656290,7.53000001,186.7,186.68,55.68900711]
[1753376656485,7.53000001,186.69,186.68,16.78468397]
[1753376656705,7.53000001,186.69,186.68,55.40468397]
[1753376657210,6.82000001,186.69,186.68,61.04576734]
[1753376657398,6.82000001,186.7,186.69,0.28432314]
[1753376657900,6.82000001,186.69,186.68,16.78468397]
[1753376658100,7.53000001,186.69,186.68,55.42468397]
[1753376658914,7.53000001,186.69,186.68,16.78468397]
[1753376659114,6.82000001,186.68,186.67,55.40468397]
[1753376659292,6.82000001,186.69,186.67,55.40468397]
[1753376659489,7.53000001,186.69,186.68,16.78468397]
[1753376659697,6.82000001,186.69,186.68,16.78468397]
[1753376660906,6.82000001,186.69,186.68,22.1414442]
[1753376661108,6.82000001,186.69,186.68,22.42576734]
[1753376661287,6.82000001,186.7,186.69,0.28432314]
[1753376661612,6.82000001,186.7,186.69,55.68900711]
[1753376662608,7.53000001,186.7,186.69,55.40468397]
[1753376662790,7.53000001,186.7,186.69,38.62]
[1753376662996,6.82000001,186.7,186.69,38.62]
[1753376663302,6.82000001,186.7,186.69,43.97647329]
[1753376663499,6.82000001,186.7,186.69,60.76115726]
[1753376663892,6.82000001,186.7,186.69,61.0454804]
[1753376664812,6.82000001,186.7,186.69,61.5354804]
[1753376664987,6.82000001,186.72,186.69,61.0454804]
[1753376665193,6.82000001,186.7,186.69,61.0454804]
[1753376666325,6.82000001,186.72,186.69,61.0454804]
[1753376666528,6.82000001,186.7,186.69,61.0454804]
[1753376666714,6.82000001,186.72,186.69,61.0454804]
[1753376666899,6.82000001,186.7,186.69,61.0454804]
[1753376667303,6.82000001,186.71,186.69,61.5354804]
[1753376667494,6.82000001,186.71,186.7,17.55900711]
[1753376667695,6.82000001,186.71,186.7,0.28432314]
[1753376668004,6.82000001,186.71,186.7,55.90900711]
[1753376668921,6.82000001,186.69,186.68,42.78468397]
[1753376669221,6.85000001,186.74,186.72,17.06900711]
[1753376669519,6.85000001,186.74,186.73,55.88900711]
[1753376669702,6.85000001,186.74,186.73,56.37900711]
[1753376670015,6.85000001,186.74,186.73,55.88900711]
[1753376670219,0.03,186.74,186.73,55.88900711]
[1753376670517,6.85000001,186.74,186.73,55.88900711]
[1753376670902,0.03,186.74,186.73,56.37900711]
[1753376671218,6.85000001,186.74,186.73,61.24433298]
[1753376671718,6.85000001,186.74,186.73,22.42433298]
[1753376671908,7.52000001,186.74,186.73,56.16468397]
[1753376672111,7.52000001,186.74,186.73,16.78468397]
[1753376672714,6.82000001,186.7,186.69,39.42]
[1753376672904,6.82000001,186.69,186.68,56.20468397]
[1753376673104,7.49000001,186.69,186.68,56.48900711]
[1753376673720,7.49000001,186.69,186.68,56.20468397]
[1753376673918,7.49000001,186.69,186.68,39.42]
[1753376674096,6.82000001,186.63,186.6,22.14374077]
[1753376674297,6.82000001,186.63,186.61,39.4]
[1753376674602,6.82000001,186.63,186.62,0.28432314]
[1753376674804,6.82000001,186.63,186.61,39.4]
[1753376675005,6.82000001,186.64,186.63,26.0]
[1753376675312,6.82000001,186.64,186.63,87.82720246]
[1753376675696,6.82000001,186.64,186.63,61.82720246]
[1753376676028,6.82000001,186.64,186.63,61.68504089]
[1753376676323,7.49000001,186.64,186.63,56.46900711]
[1753376676621,0.03,186.74,186.63,56.46900711]
[1753376676622,6.82000001,186.66,186.65,26.28432314]
[1753376676801,6.82000001,186.66,186.65,65.66432314]
[1753376677212,7.49000001,186.66,186.65,71.02194435]
[1753376677503,6.82000001,186.66,186.65,71.02194435]
[1753376677797,6.82000001,186.67,186.65,71.02194435]
[1753376678019,6.82000001,186.67,186.66,17.06900711]
[1753376678598,6.82000001,186.67,186.66,22.4263413]
[1753376681809,7.52000001,186.74,186.73,43.06900711]
[1753376682014,6.85000001,186.74,186.73,43.06900711]
[1753376682711,6.85000001,186.74,186.73,48.42433298]
[1753376682920,6.82000001,186.77,186.76,26.0]
[1753376683230,6.82000001,186.79,186.78,17.06900711]
[1753376683711,6.82000001,186.79,186.78,56.80900711]
[1753376684104,0.1,186.8,186.79,0.28432314]
[1753376684314,6.42000001,186.81,186.79,0.28432314]
[1753376684904,6.42000001,186.8,186.79,0.28432314]
[1753376685108,6.42000001,186.81,186.79,0.28432314]
[1753376685325,6.42000001,186.81,186.8,17.06900711]
[1753376685522,6.42000001,186.81,186.8,56.82900711]
[1753376686032,6.42000001,186.82,186.8,56.82900711]
[1753376686235,7.09000001,186.82,186.8,56.82900711]
[1753376686639,6.42000001,186.81,186.8,56.82900711]
[1753376687137,6.42000001,186.82,186.8,22.42232616]
[1753376687314,6.42000001,186.82,186.8,22.91232616]
[1753376687521,6.42000001,186.81,186.8,88.20232616]
[1753376688438,6.42000001,186.83,186.82,26.0]
[1753376689143,6.42000001,186.84,186.82,31.35274595]
[1753376689436,6.42000001,186.86,186.85,43.06900711]
[1753376689638,7.09000001,186.86,186.85,43.06900711]
[1753376690844,6.42000001,186.86,186.85,43.06900711]
[1753376691057,6.42000001,186.86,186.85,48.42089365]
[1753376691544,6.42000001,186.84,186.83,31.35223025]
[1753376691721,6.42000001,186.84,186.83,88.38123736]
[1753376693648,6.42000001,186.86,186.84,17.06900711]
[1753376693853,6.42000001,186.86,186.85,57.00900711]
[1753376694622,6.42000001,186.87,186.86,0.28432314]
[1753376694825,39.92,186.99,186.86,0.28432314]
[1753376694826,6.42000001,186.9,186.88,43.06900711]
[1753376695045,6.42000001,186.9,186.89,40.20432314]
[1753376695345,6.42000001,186.9,186.89,45.55506421]
[1753376695646,6.42000001,186.9,186.89,45.41290264]
[1753376695941,6.42000001,186.9,186.89,45.27074107]
[1753376696826,6.42000001,186.89,186.88,39.9]
[1753376697030,7.09000001,186.89,186.88,39.88]
[1753376697229,6.42000001,186.89,186.88,40.37]
[1753376697460,0.71,186.89,186.88,45.23102739]
[1753376697735,7.13000001,186.89,186.88,45.23102739]
[1753376697946,6.42000001,186.89,186.88,39.88]
[1753376698251,6.42000001,186.89,186.88,45.23102739]
[1753376698457,7.13000001,186.89,186.88,39.88]
[1753376698625,7.13000001,186.89,186.85,26.0]
[1753376698828,6.42000001,186.86,186.84,45.39207043]
[1753376699035,6.42000001,186.85,186.84,45.39207043]
[1753376699238,6.42000001,186.86,186.85,16.78468397]
[1753376699435,6.42000001,186.86,186.85,22.42089365]
[1753376699642,6.42000001,186.86,186.85,22.91089365]
[1753376699844,6.42000001,186.87,186.85,22.91089365]
[1753376700163,6.42000001,186.88,186.86,40.32432314]
[1753376700363,6.42000001,186.88,186.85,5.35188654]
[1753376700364,6.42000001,186.85,186.83,8.06097296]
[1753376700528,6.42000001,186.85,186.84,40.12]
[1753376700852,6.42000001,186.86,186.84,40.26]
[1753376701047,6.42000001,186.88,186.85,17.06900711]
[1753376701349,6.42000001,186.85,186.84,17.06900711]
[1753376701553,7.13000001,186.87,186.84,62.74097955]
[1753376701727,0.71,186.86,186.84,62.74097955]
[1753376701931,7.13000001,186.85,186.84,62.74097955]
[1753376702127,7.13000001,186.85,186.8,13.44307492]
[1753376702128,6.42000001,186.81,186.8,0.06]
[1753376702330,6.42000001,186.82,186.8,5.41331905]
[1753376702546,6.42000001,186.82,186.81,40.32]
[1753376702749,7.13000001,186.81,186.8,40.38]
[1753376703069,7.13000001,186.81,186.8,0.06]
[1753376706151,12.4830325,186.81,186.8,0.06]
[1753376707169,20.7463325,186.81,186.8,0.06]
[1753376707335,6.42000001,186.69,186.68,45.67676023]
[1753376707535,6.42000001,186.7,186.68,45.96108337]
[1753376707737,6.42000001,186.69,186.68,45.67676023]
[1753376707936,7.13000001,186.69,186.68,45.96108337]
[1753376708166,6.42000001,186.69,186.64,13.39460679]
[1753376708378,6.42000001,186.66,186.65,5.35762121]
[1753376708539,6.42000001,186.66,186.65,45.77762121]
[1753376709468,10.0,186.84,186.65,66.05959739]
[1753376709664,5.35389227,186.78,186.66,40.4]
[1753376709870,0.71,186.77,186.65,5.35762121]
[1753376710070,6.3041,186.76,186.65,5.35762121]
[1753376710369,0.71,186.75,186.65,5.35762121]
[1753376710887,0.71,186.75,186.66,17.06900711]
[1753376711051,0.71,186.75,186.68,0.28432314]
[1753376711247,0.71,186.75,186.67,40.52]
[1753376711648,0.71,186.75,186.69,5.35647329]
[1753376711860,6.3041,186.81,186.7,57.66900711]
[1753376712045,40.48,186.82,186.7,57.66900711]
[1753376712046,0.71,186.78,186.71,0.53558995]
[1753376712457,6.5182,186.85,186.76,17.06900711]
[1753376712659,0.71,186.83,186.78,0.28432314]
[1753376712858,0.71,186.81,186.77,40.6]
[1753376713055,5.35189938,186.85,186.77,40.6]
[1753376713261,0.71,186.83,186.77,40.6]
[1753376713466,0.71,186.81,186.77,40.6]
[1753376715572,0.71,186.79,186.77,45.9539339]
[1753376715786,0.71,186.78,186.75,26.0]
[1753376716087,0.71,186.78,186.75,46.01457912]
[1753376717085,0.71,186.82,186.76,17.06900711]
[1753376718380,0.71,186.82,186.77,5.35417893]
[1753376718585,0.71,186.82,186.78,40.64]
[1753376719377,0.71,186.81,186.78,40.64]
[1753376719571,0.71,186.8,186.78,40.64]
[1753376719767,5.35200551,186.85,186.78,40.64]
[1753376719768,0.71,186.79,186.78,40.64]
[1753376720578,0.71,186.79,186.77,5.35390604]
[1753376720759,0.71,186.78,186.76,45.93444126]
[1753376720961,13.37828436,186.87,186.76,45.93444126]
[1753376721276,0.71,186.78,186.76,45.93444126]
[1753376721475,5.35131374,186.87,186.76,45.93444126]
[1753376721693,0.71,186.82,186.76,45.93444126]
[1753376723087,0.03,186.83,186.77,17.06900711]
[1753376723961,0.71,186.82,186.78,40.52]
[1753376724162,0.03,186.83,186.78,40.52]
[1753376724478,0.71,186.82,186.78,40.52]
[1753376724664,0.71,186.81,186.79,5.35360565]
[1753376724867,0.74,186.83,186.79,5.35360565]
[1753376725080,0.03,186.83,186.79,5.35360565]
[1753376725478,0.71,186.82,186.79,5.35360565]
[1753376725781,0.03,186.83,186.79,5.35360565]
[1753376726474,0.74,186.83,186.79,5.35360565]
[1753376726670,0.03,186.83,186.82,42.78468397]
[1753376726873,0.03,186.89,186.85,26.28432314]
[1753376727186,0.03,186.89,186.87,17.06900711]
[1753376727511,0.03,186.89,186.87,43.06900711]
[1753376727690,0.03,186.89,186.88,5.35102739]
[1753376728875,0.75,186.89,186.84,5.35217298]
[1753376729081,0.72,186.88,186.85,40.9]
[1753376729397,0.72,186.87,186.81,5.35278873]
[1753376729571,0.72,186.87,186.82,40.9]
[1753376729773,0.72,186.86,186.82,46.25255753]
[1753376729980,0.72,186.85,186.82,40.9]
[1753376730293,0.72,186.84,186.82,40.9]
[1753376730789,0.72,186.83,186.81,5.35293187]
[1753376730986,0.03,186.89,186.79,57.66468397]
[1753376730987,0.72,186.82,186.79,46.233331]
[1753376731577,0.72,186.81,186.79,46.233331]
[1753376732371,0.72,186.8,186.79,40.88]
[1753376732574,0.72,186.8,186.77,72.23394548]
[1753376734591,0.72,186.79,186.75,5.35452549]
[1753376734790,0.72,186.78,186.75,46.15452549]
[1753376735388,0.72,186.77,186.75,46.15452549]
[1753376736171,0.72,186.82,186.75,46.15452549]
[1753376738473,0.03,186.89,186.76,17.06900711]
[1753376738675,6.07102739,186.88,186.76,17.06900711]
[1753376738894,0.72,186.87,186.76,17.06900711]
[1753376739807,5.35160012,186.86,186.77,5.35417893]
[1753376740010,0.72,186.85,186.78,40.72]
[1753376741505,5.3512779,186.88,186.78,40.72]
[1753376741816,0.72,186.87,186.79,5.35360565]